fUST/lending_fUST_20260420
["ID","MTS","AMOUNT","RATE_DAILY","PERIOD"]
[420872526,1776687038819,-662.60247952,0.00012993,2]
[420872527,1776687038829,-1000.0,0.00012993,2]
[420872528,1776687038838,-1000.0,0.00012993,2]
[420872529,1776687038847,-1000.0,0.00012993,2]
[420872530,1776687038856,-1000.0,0.00012993,2]
[420872531,1776687038866,-1001.18218801,0.00012993,2]
[420872532,1776687038875,-180.62760938,0.00012993,2]
[420872533,1776687038885,-151.0,0.00012993,2]
[420872534,1776687038894,-151.0,0.00012993,2]
[420872535,1776687038904,-151.0,0.00012993,2]
[420872536,1776687038915,-151.0,0.00012993,2]
[420872537,1776687038924,-151.0,0.00012993,2]
[420872538,1776687038934,-151.0,0.00012993,2]
[420872539,1776687038944,-152.89425268,0.00012993,2]
[420872540,1776687038953,-537.6845,0.00012999,2]
[420872541,1776687038962,-2150.738,0.00012999,2]
[420872542,1776687038971,-8543.0,0.00013,5]
[420872543,1776687038980,-1280.269299,0.00013022,2]
[420872544,1776687038990,-501.06298823,0.00013054,2]
[420872545,1776687038999,-999.0,0.00013093,2]
[420872546,1776687039008,-988.0,0.00013093,2]
[420872547,1776687039017,-987.0,0.00013093,2]
[420872548,1776687039027,-333.0,0.00013093,2]
[420872549,1776687039036,-888.0,0.00013094,2]
[420872550,1776687039045,-555.0,0.00013095,2]
[420872551,1776687039055,-444.0,0.00013095,2]
[420872552,1776687039064,-333.0,0.00013095,2]
[420872553,1776687039073,-222.0,0.00013095,2]
[420872554,1776687039083,-155.0,0.00013095,2]
[420872555,1776687039093,-555.0,0.00013095,2]
[420872556,1776687039104,-666.0,0.00013095,2]
[420872557,1776687039113,-777.0,0.00013095,2]
[420872558,1776687039123,-300.0,0.00013117,2]
[420872559,1776687039132,-600.0,0.00013129,2]
[420872560,1776687039142,-151.5,0.0001315,2]
[420872561,1776687039151,-151.5,0.0001315,2]
[420872562,1776687039160,-151.5,0.0001315,2]
[420872563,1776687039170,-151.5,0.0001315,2]
[420872564,1776687039179,-151.5,0.0001315,2]
[420872565,1776687039188,-208.49603102,0.0001315,2]
[420872566,1776687039198,-799.0,0.0001315,2]
[420872567,1776687039208,-799.0,0.0001315,2]
[420872568,1776687039217,-799.0,0.0001315,2]
[420872569,1776687039226,-799.0,0.0001315,2]
[420872570,1776687039235,-799.0,0.0001315,2]
[420872571,1776687039245,-799.0,0.0001315,2]
[420872572,1776687039254,-799.0,0.0001315,2]
[420872573,1776687039264,-799.0,0.0001315,2]
[420872574,1776687039274,-799.0,0.0001315,2]
[420872575,1776687039289,-799.0,0.0001315,2]
[420872576,1776687039300,-799.0,0.0001315,2]
[420872577,1776687039309,-799.0,0.0001315,2]
[420872578,1776687039320,-799.0,0.0001315,2]
[420872579,1776687039330,-799.0,0.0001315,2]
[420872580,1776687039341,-799.0,0.0001315,2]
[420872581,1776687039351,-799.0,0.0001315,2]
[420872582,1776687039362,-799.0,0.0001315,2]
[420872583,1776687039373,-799.0,0.0001315,2]
[420872584,1776687039383,-799.0,0.0001315,2]
[420872585,1776687039394,-799.0,0.0001315,2]
[420872586,1776687039406,-799.0,0.0001315,2]
[420872587,1776687039419,-799.0,0.0001315,2]
[420872588,1776687039431,-799.0,0.0001315,2]
[420872589,1776687039442,-812.06469156,0.0001315,2]
[420872590,1776687039458,-500.0,0.0001315,2]
[420872591,1776687039471,-503.71312863,0.0001315,2]
[420872592,1776687039484,-150.0,0.0001315,2]
[420872593,1776687039495,-150.0,0.0001315,2]
[420872594,1776687039511,-150.0,0.0001315,2]
[420872595,1776687039521,-150.0,0.0001315,2]
[420872596,1776687039531,-150.0,0.0001315,2]
[420872597,1776687039541,-150.0,0.0001315,2]
[420872598,1776687039550,-150.0,0.0001315,2]
[420872599,1776687039559,-204.63491824,0.0001315,2]
[420872600,1776687039568,-151.5,0.0001315,2]
[420872601,1776687039578,-189.43854004,0.0001315,2]
[420872602,1776687039588,-500.0,0.0001315,2]
[420872603,1776687039597,-500.0,0.0001315,2]
[420872604,1776687039608,-500.0,0.0001315,2]
[420872605,1776687039617,-236.77688035,0.0001315,2]
[420872606,1776687039628,-151.5,0.0001315,2]
[420872607,1776687039638,-500.0,0.0001315,2]
[420872608,1776687039648,-500.0,0.0001315,2]
[420872609,1776687039658,-500.0,0.0001315,2]
[420872610,1776687039668,-647.89399347,0.0001315,2]
[420872611,1776687039678,-500.0,0.0001315,2]
[420872612,1776687039687,-500.0,0.0001315,2]
[420872613,1776687039701,-500.0,0.0001315,2]
[420872614,1776687039710,-500.0,0.0001315,2]
[420872615,1776687039720,-500.0,0.0001315,2]
[420872616,1776687039729,-500.0,0.0001315,2]
[420872617,1776687039740,-500.0,0.0001315,2]
[420872618,1776687039749,-500.0,0.0001315,2]
[420872619,1776687039759,-500.0,0.0001315,2]
[420872620,1776687039768,-560.34375397,0.0001315,2]
[420872621,1776687039778,-500.0,0.0001315,2]
[420872622,1776687039788,-500.0,0.0001315,2]
[420872623,1776687039798,-500.0,0.0001315,2]
[420872624,1776687039808,-291.84526023,0.0001315,2]
[420872625,1776687039818,-500.0,0.00013195,2]
[420872626,1776687039827,-1000.0,0.00013321,2]
[420872627,1776687039837,-1000.0,0.00013321,2]
[420872628,1776687039847,-1000.0,0.00013321,2]
[420872629,1776687039856,-1000.0,0.00013321,2]
[420872630,1776687039865,-150.0,0.00013416,2]
[420872631,1776687039875,-1000.0,0.00013421,2]
[420872632,1776687039883,-424.43804077,0.00013421,2]
[420872633,1776687039893,-500.0,0.00013469,2]
[420872634,1776687039903,-712.94776493,0.00013473,2]
[420872636,1776687039912,-2851.79105971,0.00013473,2]
[420872637,1776687039922,-6410.11335446,0.00013473,2]
[420872638,1776687039931,-313.26635568,0.00013473,2]
[420872639,1776687039941,-420.0,0.00013482,2]
[420872640,1776687039951,-420.0,0.00013483,2]
[420872641,1776687039961,-420.0,0.00013483,2]
[420872642,1776687039971,-420.0,0.00013483,2]
[420872643,1776687039980,-39866.20956166,0.000135,2]
[420872644,1776687039990,-180.14072691,0.000135,2]
[420872645,1776687039999,-2230.315306,0.00013547,2]
[420872646,1776687040009,-1280.269299,0.0001357,2]
[420872647,1776687040204,-64212.08800249,0.00013595,2]
[420872648,1776687040214,-791.4745296,0.00013598,2]
[420872649,1776687040224,-505.93244604,0.00013598,2]
[420872650,1776687040233,-500.0,0.00013673,2]
[420872651,1776687040243,-155.0,0.00013697,2]
[420872652,1776687040252,-1182.3835,0.00013698,2]
[420872653,1776687040261,-500.07245056,0.00013698,2]
[420872654,1776687040270,-259.178454,0.00013698,2]
[420872655,1776687040280,-500.0,0.00013698,2]
[420872656,1776687040291,-500.0,0.00013698,2]
[420872657,1776687040300,-1056.75,0.00013698,2]
[420872658,1776687040309,-542.92500175,0.00013698,2]
[420872659,1776687040319,-500.0,0.00013698,2]
[420872660,1776687040329,-500.0,0.00013698,2]
[420872662,1776687040338,-1249.04,0.00013698,2]
[420872663,1776687040347,-500.0,0.00013698,2]
[420872664,1776687040357,-500.0,0.00013698,2]
[420872665,1776687040367,-605.98,0.00013698,2]
[420872666,1776687040376,-500.0,0.00013698,2]
[420872667,1776687040386,-378.13750546,0.00013698,2]
[420872668,1776687040395,-501.17323577,0.00013698,2]
[420872669,1776687040405,-500.0,0.00013698,2]
[420872670,1776687040414,-500.87313547,0.00013698,2]
[420872671,1776687040424,-500.0,0.00013698,2]
[420872672,1776687040433,-500.0,0.00013698,2]
[420872674,1776687040442,-1345.7,0.00013698,2]
[420872675,1776687040452,-500.0,0.00013698,2]
[420872676,1776687040461,-504.3436582,0.00013698,2]
[420872677,1776687040470,-797.81,0.00013698,2]
[420872678,1776687040479,-739.2,0.00013698,2]
[420872679,1776687040489,-500.0,0.00013698,2]
[420872680,1776687040498,-494.18827422,0.00013698,2]
[420872681,1776687040508,-500.0,0.00013698,2]
[420872682,1776687040518,-500.0,0.00013698,2]
[420872683,1776687040528,-500.0,0.00013698,2]
[420872684,1776687040538,-1144.61,0.00013698,2]
[420872685,1776687040548,-728.03,0.00013698,2]
[420872686,1776687040558,-647.43,0.00013698,2]
[420872687,1776687040567,-500.0,0.00013698,2]
[420872688,1776687040576,-500.27286441,0.00013698,2]
[420872689,1776687040585,-500.0,0.00013698,2]
[420872690,1776687040595,-503.42133656,0.00013698,2]
[420872691,1776687040605,-1685.07,0.00013698,2]
[420872692,1776687040614,-590.9,0.00013698,2]
[420872693,1776687040623,-500.0,0.00013698,2]
[420872694,1776687040632,-500.0,0.00013698,2]
[420872695,1776687040642,-555.06,0.00013698,2]
[420872696,1776687040651,-500.0,0.00013698,2]
[420872697,1776687040661,-2422.35,0.00013698,2]
[420872698,1776687040671,-500.0,0.00013698,2]
[420872699,1776687040680,-2385.0,0.00013698,2]
[420872700,1776687040690,-500.0,0.00013698,2]
[420872701,1776687040701,-500.0,0.00013698,2]
[420872702,1776687040710,-1025.3,0.00013698,2]
[420872703,1776687040718,-500.0,0.00013698,2]
[420872704,1776687040728,-511.06500264,0.00013698,2]
[420872705,1776687040737,-500.0,0.00013698,2]
[420872706,1776687040747,-500.0,0.00013698,2]
[420872707,1776687040756,-501.31345623,0.00013698,2]
[420872708,1776687040765,-1113.95,0.00013698,2]
[420872709,1776687040774,-500.0,0.00013698,2]
[420872710,1776687040783,-500.0,0.00013698,2]
[420872711,1776687040792,-500.0,0.00013698,2]
[420872712,1776687040802,-1333.39,0.00013698,2]
[420872713,1776687040811,-510.06,0.00013698,2]
[420872714,1776687040820,-500.0,0.00013698,2]
[420872715,1776687040829,-500.0,0.00013698,2]
[420872716,1776687040838,-155.0,0.00013698,2]
[420872717,1776687040848,-155.19967791,0.00013698,2]
[420872718,1776687040858,-441.31469601,0.00013698,2]
[420872719,1776687040867,-579.71,0.00013698,2]
[420872720,1776687040876,-1161.79,0.00013698,2]
[420872721,1776687040885,-534.19268114,0.00013698,2]
[420872722,1776687040894,-500.0,0.00013698,2]
[420872723,1776687040903,-500.0,0.00013698,2]
[420872724,1776687040912,-2343.35,0.00013698,2]
[420872725,1776687040922,-517.93171463,0.00013698,2]
[420872726,1776687040931,-623.15088181,0.00013698,2]
[420872727,1776687040940,-1335.22,0.00013698,2]
[420872728,1776687040951,-500.0,0.00013698,2]
[420872729,1776687040961,-500.0,0.00013698,2]
[420872730,1776687040970,-1141.91,0.00013698,2]
[420872731,1776687040979,-500.0,0.00013698,2]
[420872732,1776687040989,-1139.21,0.00013698,2]
[420872733,1776687040998,-343.02221273,0.00013698,2]
[420872734,1776687041007,-500.0,0.00013698,2]
[420872735,1776687041016,-500.0,0.00013698,2]
[420872736,1776687041025,-500.0,0.00013698,2]
[420872737,1776687041035,-500.0,0.00013698,2]
[420872738,1776687041044,-500.30397753,0.00013698,2]
[420872739,1776687041054,-500.0,0.00013698,2]
[420872740,1776687041063,-502.01734795,0.00013698,2]
[420872741,1776687041072,-1302.65,0.00013698,2]
[420872742,1776687041081,-500.0,0.00013698,2]
[420872743,1776687041090,-500.0,0.00013698,2]
[420872744,1776687041099,-500.0,0.00013698,2]
[420872745,1776687041108,-500.0,0.00013698,2]
[420872746,1776687041118,-500.0,0.00013698,2]
[420872747,1776687041127,-1090.35,0.00013698,2]
[420872748,1776687041136,-500.0,0.00013698,2]
[420872749,1776687041145,-500.0,0.00013698,2]
[420872750,1776687041155,-500.0,0.00013698,2]
[420872751,1776687041164,-500.0,0.00013698,2]
[420872752,1776687041173,-500.0,0.00013698,2]
[420872753,1776687041182,-514.40556369,0.00013698,2]
[420872754,1776687041191,-500.0,0.00013698,2]
[420872755,1776687041202,-582.96,0.00013698,2]
[420872756,1776687041211,-500.0,0.00013698,2]
[420872757,1776687041220,-502.99311445,0.00013698,2]
[420872758,1776687041229,-743.16,0.00013698,2]
[420872759,1776687041238,-501.55001933,0.00013698,2]
[420872760,1776687041247,-500.0,0.00013698,2]
[420872761,1776687041257,-500.0,0.00013698,2]
[420872762,1776687041266,-500.0,0.00013698,2]
[420872763,1776687041275,-532.54643623,0.00013698,2]
[420872764,1776687041285,-500.0,0.00013698,2]
[420872765,1776687041294,-1508.53,0.00013698,2]
[420872766,1776687041303,-500.0,0.00013698,2]
[420872767,1776687041311,-500.0,0.00013698,2]
[420872768,1776687041320,-500.0,0.00013698,2]
[420872769,1776687041330,-395.56954351,0.00013698,2]
[420872770,1776687041340,-500.0,0.00013698,2]
[420872771,1776687041348,-500.0,0.00013698,2]
[420872772,1776687041358,-913.16,0.00013698,2]
[420872773,1776687041368,-500.0,0.00013698,2]
[420872774,1776687041376,-1227.88,0.00013698,2]
[420872775,1776687041386,-500.0,0.00013698,2]
[420872776,1776687041395,-500.0,0.00013698,2]
[420872777,1776687041404,-500.0,0.00013698,2]
[420872778,1776687041414,-640.3391876,0.00013698,2]
[420872779,1776687041423,-501.56419537,0.00013698,2]
[420872780,1776687041432,-500.0,0.00013698,2]
[420872781,1776687041442,-500.0,0.00013698,2]
[420872782,1776687041452,-500.0,0.00013698,2]
[420872783,1776687041461,-500.0,0.00013698,2]
[420872784,1776687041470,-510.44,0.00013698,2]
[420872785,1776687041479,-500.0,0.00013698,2]
[420872786,1776687041488,-811.12,0.00013698,2]
[420872787,1776687041498,-932.67,0.00013698,2]
[420872788,1776687041508,-500.0,0.00013698,2]
[420872789,1776687041516,-500.0,0.00013698,2]
[420872790,1776687041526,-536.34795995,0.00013698,2]
[420872791,1776687041535,-500.0,0.00013698,2]
[420872792,1776687041544,-500.54596036,0.00013698,2]
[420872793,1776687041553,-500.0,0.00013698,2]
[420872794,1776687041562,-500.0,0.00013698,2]
[420872795,1776687041571,-726.37,0.00013698,2]
[420872796,1776687041580,-500.0,0.00013698,2]
[420872797,1776687041590,-502.17648249,0.00013698,2]
[420872798,1776687041600,-698.24,0.00013698,2]
[420872799,1776687041609,-500.0,0.00013698,2]
[420872800,1776687041618,-502.30573302,0.00013698,2]
[420872801,1776687041627,-500.0,0.00013698,2]
[420872802,1776687041637,-500.0,0.00013698,2]
[420872803,1776687041646,-500.0,0.00013698,2]
[420872804,1776687041656,-706.63,0.00013698,2]
[420872805,1776687041665,-4340.17,0.00013698,2]
[420872806,1776687041675,-500.0,0.00013698,2]
[420872807,1776687041684,-415.99320867,0.00013698,2]
[420872808,1776687041694,-500.0,0.00013698,2]
[420872809,1776687041704,-821.47,0.00013698,2]
[420872810,1776687041713,-887.95,0.00013698,2]
[420872811,1776687041723,-504.82593595,0.00013698,2]
[420872812,1776687041732,-500.0,0.00013698,2]
[420872813,1776687041742,-500.11408711,0.00013698,2]
[420872814,1776687041751,-517.52420718,0.00013698,2]
[420872815,1776687041760,-501.75,0.00013698,2]
[420872816,1776687041770,-500.0,0.00013698,2]
[420872817,1776687041779,-500.0,0.00013698,2]
[420872818,1776687041788,-500.0,0.00013698,2]
[420872819,1776687041798,-500.0,0.00013698,2]
[420872820,1776687041807,-500.0,0.00013698,2]
[420872821,1776687041817,-500.0,0.00013698,2]
[420872822,1776687041827,-1275.24,0.00013698,2]
[420872823,1776687041836,-660.14,0.00013698,2]
[420872824,1776687041846,-1000.0,0.00013698,2]
[420872825,1776687041855,-500.61155725,0.00013698,2]
[420872826,1776687041864,-500.0,0.00013698,2]
[420872827,1776687041874,-801.33,0.00013698,2]
[420872828,1776687041883,-500.0,0.00013698,2]
[420872829,1776687041892,-500.0,0.00013698,2]
[420872830,1776687041902,-324.53483207,0.00013698,2]
[420872831,1776687041911,-1662.91,0.00013698,2]
[420872832,1776687041920,-826.21,0.00013698,2]
[420872833,1776687041929,-1256.71,0.00013698,2]
[420872834,1776687041939,-704.93,0.00013698,2]
[420872835,1776687041950,-501.58650009,0.00013698,2]
[420872836,1776687041959,-500.0,0.00013698,2]
[420872837,1776687041968,-500.0,0.00013698,2]
[420872838,1776687041978,-500.0,0.00013698,2]
[420872839,1776687041987,-500.0,0.00013698,2]
[420872840,1776687041996,-521.32,0.00013698,2]
[420872841,1776687042005,-500.0,0.00013698,2]
[420872842,1776687042014,-500.0,0.00013698,2]
[420872843,1776687042023,-500.0,0.00013698,2]
[420872844,1776687042032,-500.0,0.00013698,2]
[420872845,1776687042042,-500.0,0.00013698,2]
[420872846,1776687042051,-676.7,0.00013698,2]
[420872847,1776687042061,-500.0,0.00013698,2]
[420872848,1776687042070,-1556.91,0.00013698,2]
[420872849,1776687042079,-564.31,0.00013698,2]
[420872850,1776687042088,-500.0,0.00013698,2]
[420872851,1776687042097,-2210.33,0.00013698,2]
[420872852,1776687042106,-500.0,0.00013698,2]
[420872853,1776687042115,-650.13,0.00013698,2]
[420872854,1776687042125,-166.0,0.00013698,2]
[420872855,1776687042134,-166.0,0.00013698,2]
[420872856,1776687042143,-160.01082423,0.00013698,2]
[420872857,1776687042152,-500.0,0.00013698,2]
[420872858,1776687042161,-166.0,0.00013698,2]
[420872859,1776687042171,-500.0,0.00013698,2]
[420872860,1776687042179,-166.0,0.00013698,2]
[420872861,1776687042189,-648.0,0.00013698,2]
[420872862,1776687042199,-648.0,0.00013698,2]
[420872863,1776687042208,-613.59523326,0.00013698,2]
[420872864,1776687042216,-648.0,0.00013698,2]
[420872865,1776687042226,-648.0,0.00013698,2]
[420872866,1776687042235,-648.0,0.00013698,2]
[420872867,1776687042248,-648.0,0.00013698,2]
[420872868,1776687042261,-648.0,0.00013698,2]
[420872869,1776687042273,-340.0,0.00013698,2]
[420872870,1776687042285,-648.0,0.00013698,2]
[420872871,1776687042298,-340.0,0.00013698,2]
[420872872,1776687042308,-648.0,0.00013698,2]
[420872873,1776687042318,-340.0,0.00013698,2]
[420872874,1776687042331,-596.99703102,0.00013698,2]
[420872875,1776687042343,-340.0,0.00013698,2]
[420872876,1776687042354,-340.0,0.00013698,2]
[420872877,1776687042366,-590.95130707,0.00013698,2]
[420872878,1776687042378,-486.14244784,0.00013698,2]
[420872879,1776687042390,-501.11873835,0.00013698,2]
[420872880,1776687042402,-2710.61,0.00013698,2]
[420872881,1776687042413,-914.02,0.00013698,2]
[420872882,1776687042425,-500.33629705,0.00013698,2]
[420872883,1776687042437,-500.0,0.00013698,2]
[420872884,1776687042448,-2033.97,0.00013698,2]
[420872885,1776687042460,-500.32553757,0.00013698,2]
[420872886,1776687042471,-500.0,0.00013698,2]
[420872887,1776687042483,-601.84,0.00013698,2]
[420872888,1776687042494,-500.0,0.00013698,2]
[420872890,1776687042505,-500.0,0.00013698,2]
[420872892,1776687042517,-550.22,0.00013698,2]
[420872894,1776687042528,-500.0,0.00013698,2]
[420872895,1776687042538,-723.52,0.00013698,2]
[420872896,1776687042549,-864.13,0.00013698,2]
[420872898,1776687042561,-962.58,0.00013698,2]
[420872899,1776687042571,-345.90235554,0.00013698,2]
[420872900,1776687042584,-500.0,0.00013698,2]
[420872901,1776687042596,-500.0,0.00013698,2]
[420872902,1776687042609,-500.0,0.00013698,2]
[420872903,1776687042621,-4881.24,0.00013698,2]
[420872904,1776687042632,-500.0,0.00013698,2]
[420872906,1776687042645,-670.01,0.00013698,2]
[420872908,1776687042658,-8666.38,0.00013698,2]
[420872909,1776687042670,-500.0,0.00013698,2]
[420872910,1776687042683,-500.0,0.00013698,2]
[420872911,1776687042695,-1153.76,0.00013698,2]
[420872912,1776687042705,-503.49,0.00013698,2]
[420872913,1776687042716,-837.71,0.00013698,2]
[420872914,1776687042726,-500.0,0.00013698,2]
[420872915,1776687042737,-500.0,0.00013698,2]
[420872916,1776687042750,-880.28,0.00013698,2]
[420872917,1776687042763,-2471.95896669,0.00013698,2]
[420872918,1776687043325,-503.88103331,0.00013698,2]
[420872919,1776687043336,-209.02582396,0.00013698,2]
[420872920,1776687043348,-500.0,0.00013698,2]
[420872921,1776687043360,-730.5,0.00013698,2]
[420872922,1776687043373,-730.88,0.00013698,2]
[420872923,1776687043384,-1627.18,0.00013698,2]
[420872924,1776687043395,-841.29085158,0.00013698,2]
[420872925,1776687043408,-1549.6017491,0.00013698,2]
[420872926,1776687043761,-49.05069168,0.00013698,2]
[420872927,1776687044153,-1055.05670764,0.00013698,2]
[420872928,1776687044163,-1000.0,0.00013698,2]
[420872929,1776687044173,-500.0,0.00013698,2]
[420872930,1776687044182,-12004.28686951,0.00013698,2]
[420872951,1776687046145,-13401.91903376,0.00012693,2]
[420872952,1776687046155,-298.20750572,0.00013561,2]
[420872953,1776687046251,-1847.84066308,0.00013561,2]
[420873030,1776688232081,-202.64543136,0.00010172,2]
[420873032,1776688232090,-5000.0,0.00010275,2]
[420873034,1776688232100,-564.0,0.00010275,2]
[420873036,1776688232109,-150.0,0.00010432,2]
[420873038,1776688232118,-161.10030562,0.00011961,2]
[420873040,1776688232128,-424.0,0.00011997,2]
[420873042,1776688232137,-300.0,0.00011998,2]
[420873045,1776688232146,-300.0,0.00011998,2]
[420873047,1776688232156,-300.0,0.00011998,2]
[420873049,1776688232165,-500.0,0.00011999,2]
[420873051,1776688232174,-500.0,0.00011999,2]
[420873053,1776688232183,-500.0,0.00011999,2]
[420873055,1776688232192,-500.0,0.00011999,2]
[420873058,1776688232202,-168.9603716,0.00011999,2]
[420873060,1776688232211,-500.0,0.00011999,2]
[420873062,1776688232221,-500.0,0.00011999,2]
[420873064,1776688232230,-500.0,0.00011999,2]
[420873066,1776688232238,-500.0,0.00011999,2]
[420873068,1776688232248,-500.0,0.00011999,2]
[420873070,1776688232257,-270.60019424,0.00011999,2]
[420873072,1776688232267,-96967.2216592,0.00012,2]
[420873075,1776688232286,-14008.2883408,0.00012,2]
[420873077,1776688232294,-1526.130679,0.00012061,2]
[420873079,1776688232303,-177.0,0.00012432,2]
[420873081,1776688232312,-161.10030559,0.00012507,2]
[420873083,1776688232321,-1526.130679,0.00012568,2]
[420873085,1776688232330,-233.60958608,0.00012673,2]
[420873087,1776688232339,-455.7290828,0.00012888,2]
[420873089,1776688232348,-151.3411923,0.00012902,2]
[420873091,1776688232357,-537.6845,0.00012964,2]
[420873092,1776688232366,-557.5788265,0.00012964,2]
[420873093,1776688232376,-2150.738,0.00012964,2]
[420873094,1776688232384,-500.0,0.0001299,2]
[420873095,1776688232394,-323.8865832,0.00012999,2]
[420873097,1776688232404,-40341.44678893,0.00013,2]
[420873099,1776688232413,-557.5788265,0.00013019,2]
[420873101,1776688232422,-161.10030559,0.00013052,2]
[420873103,1776688232431,-423.63027856,0.00013074,2]
[420873105,1776688232440,-1526.130679,0.00013076,2]
[420873107,1776688232449,-167.0,0.00013171,2]
[420873109,1776688232458,-287.0,0.00013171,2]
[420873111,1776688232467,-287.0,0.00013171,2]
[420873113,1776688232476,-152.0,0.00013352,7]
[420873115,1776688232485,-152.0,0.00013366,7]
[420873117,1776688232494,-500.0,0.00013391,2]
[420873119,1776688232504,-152.0,0.00013391,7]
[420873121,1776688232512,-152.0,0.00013391,7]
[420873123,1776688232522,-152.0,0.00013391,7]
[420873125,1776688232531,-152.0,0.00013391,7]
[420873127,1776688232540,-152.0,0.00013391,7]
[420873129,1776688232549,-152.0,0.00013391,7]
[420873131,1776688232559,-152.0,0.00013391,7]
[420873133,1776688232568,-151.5,0.00013424,2]
[420873135,1776688232577,-2230.315306,0.00013512,2]
[420873137,1776688232587,-1921.0805416,0.00013515,2]
[420873138,1776688232596,-39554.33063552,0.00013515,2]
[420873205,1776688238478,-5000.0,0.00012922,2]
[420873206,1776688238488,-24499.40166808,0.00013515,2]
[420873207,1776688238498,-1526.130679,0.00013584,2]
[420873208,1776688238508,-161.10030559,0.00013598,2]
[420873209,1776688238518,-490.68553225,0.000136,2]
[420873210,1776688238527,-500.0,0.00013665,2]
[420873211,1776688238536,-518.75538325,0.00013673,2]
[420873212,1776688238546,-500.0,0.00013673,2]
[420873213,1776688238555,-500.0,0.00013673,2]
[420873214,1776688238564,-500.0,0.00013673,2]
[420873215,1776688238574,-500.0,0.00013673,2]
[420873216,1776688238583,-500.0,0.00013673,2]
[420873217,1776688238593,-500.0,0.00013673,2]
[420873218,1776688238602,-500.0,0.00013673,2]
[420873219,1776688238612,-500.0,0.00013673,2]
[420873220,1776688238621,-578.16092339,0.00013673,2]
[420873221,1776688238630,-500.0,0.00013673,2]
[420873222,1776688238639,-151.5,0.00013698,2]
[420873223,1776688238649,-560.54328888,0.00013698,2]
[420873224,1776688238658,-1001.2448,0.00013698,2]
[420873225,1776688238667,-500.0,0.00013698,2]
[420873226,1776688238677,-1251.81235728,0.00013698,2]
[420873227,1776688238686,-500.0,0.00013698,2]
[420873228,1776688238696,-500.0,0.00013698,2]
[420873229,1776688238705,-500.0,0.00013698,2]
[420873230,1776688238715,-500.0,0.00013698,2]
[420873231,1776688238724,-1113.38,0.00013698,2]
[420873232,1776688238734,-1091.74,0.00013698,2]
[420873233,1776688238743,-1094.33,0.00013698,2]
[420873234,1776688238753,-1248.38,0.00013698,2]
[420873235,1776688238763,-500.0,0.00013698,2]
[420873236,1776688238773,-500.0,0.00013698,2]
[420873237,1776688238783,-500.0,0.00013698,2]
[420873238,1776688238793,-500.0,0.00013698,2]
[420873239,1776688238803,-199.39537691,0.00013698,2]
[420873240,1776688238816,-81.6753673,0.00013698,2]
[420873241,1776688238825,-1313.2,0.00013698,2]
[420873242,1776688238835,-500.0,0.00013698,2]
[420873243,1776688238844,-500.0,0.00013698,2]
[420873244,1776688238854,-1445.68,0.00013698,2]
[420873245,1776688238863,-500.0,0.00013698,2]
[420873246,1776688238873,-500.0,0.00013698,2]
[420873247,1776688238882,-500.0,0.00013698,2]
[420873248,1776688238892,-334.7789257,0.00013698,2]
[420873249,1776688239130,-165.2210743,0.00013698,2]